bitfinex/quotes_BTCUSD_20251124
["timestamp","ask_amount","ask_price","bid_price","bid_amount"]
[1764011516290,0.5567188,88771.0,88770.0,0.00155603]
[1764011516912,0.5651388,88771.0,88770.0,0.00155603]
[1764011518056,0.5567188,88771.0,88770.0,0.00155603]
[1764011518665,0.5651388,88771.0,88770.0,0.00155603]
[1764011519627,0.5567188,88771.0,88770.0,0.00155603]
[1764011520023,0.5651388,88771.0,88770.0,0.00155603]
[1764011520980,0.5567188,88771.0,88770.0,0.00155603]
[1764011522549,0.5651388,88771.0,88770.0,0.00155603]
[1764011522750,0.5567188,88771.0,88770.0,0.00155603]
[1764011523663,0.5482988,88771.0,88770.0,0.00155603]
[1764011523866,0.5567188,88771.0,88770.0,0.00155603]
[1764011524123,0.5482988,88771.0,88770.0,0.00155603]
[1764011524322,0.323,88771.0,88770.0,0.04681603]
[1764011524597,0.323,88771.0,88770.0,0.27211737]
[1764011525389,0.5482988,88771.0,88770.0,0.00155603]
[1764011525800,0.5482988,88771.0,88770.0,0.04681603]
[1764011526121,0.22528121,88778.0,88770.0,0.04681603]
[1764011526283,0.55954066,88780.0,88777.0,0.01799]
[1764011526619,0.22528103,88778.0,88777.0,0.06986847]
[1764011526918,0.22528103,88778.0,88777.0,0.0008252]
[1764011527063,0.23370103,88778.0,88777.0,0.0008252]
[1764011527469,0.24212103,88778.0,88777.0,0.0008252]
[1764011527707,0.26320804,88778.0,88777.0,0.0008252]
[1764011528329,2.26320804,88778.0,88777.0,0.0008252]
[1764011528748,2.58620804,88778.0,88777.0,0.0008252]
[1764011529683,2.5482988,88771.0,88770.0,0.00051681]
[1764011529853,2.62780581,88771.0,88770.0,0.00051681]
[1764011530057,2.64678441,88771.0,88770.0,0.00051681]
[1764011530866,2.60637895,88767.0,88766.0,3.75921]
[1764011531072,2.60637895,88767.0,88766.0,3.75932689]
[1764011531073,2.63462596,88767.0,88766.0,3.75932689]
[1764011531252,2.59269596,88767.0,88766.0,3.75932689]
[1764011532022,2.58462596,88767.0,88766.0,3.75932689]
[1764011532222,2.59369596,88767.0,88766.0,3.75932689]
[1764011532372,2.59269596,88767.0,88766.0,3.75932689]
[1764011532581,2.58462596,88767.0,88766.0,3.75932689]
[1764011533072,2.58562596,88767.0,88766.0,3.75932689]
[1764011533274,2.59369596,88767.0,88766.0,3.75932689]
[1764011533674,2.58662596,88767.0,88766.0,3.75932689]
[1764011535143,2.58664823,88767.0,88766.0,3.75932689]
[1764011535346,2.59471823,88767.0,88766.0,3.75932689]
[1764011539180,2.64471823,88767.0,88766.0,3.75932689]
[1764011539614,2.64471823,88767.0,88766.0,3.75966317]
[1764011540233,2.68914744,88767.0,88766.0,3.75966317]
[1764011540859,2.71345559,88767.0,88766.0,3.75966317]
[1764011541053,2.62859638,88767.0,88766.0,3.75966317]
[1764011541449,2.62859638,88767.0,88766.0,3.75466317]
[1764011541855,2.71345248,88767.0,88766.0,3.75466317]
[1764011542083,2.73673618,88767.0,88766.0,1.15079566]
[1764011542295,3.01390116,88767.0,88766.0,1.03550958]
[1764011542630,2.69760994,88767.0,88766.0,1.03550958]
[1764011542840,2.66437505,88767.0,88766.0,1.03550958]
[1764011543041,2.77798576,88767.0,88766.0,1.03550958]
[1764011543244,2.84350875,88767.0,88766.0,1.03550958]
[1764011543640,2.84050875,88767.0,88766.0,1.03550958]
[1764011543961,2.77998576,88767.0,88766.0,1.03550958]
[1764011544144,2.75567652,88767.0,88766.0,1.03550958]
[1764011544351,2.75367652,88767.0,88766.0,1.03550958]
[1764011544550,2.75467652,88767.0,88766.0,1.03550958]
[1764011545264,2.77895876,88767.0,88766.0,1.03550958]
[1764011545707,2.75467652,88767.0,88766.0,1.03550958]
[1764011546599,2.77895599,88767.0,88766.0,1.03550958]
[1764011547214,2.84147898,88767.0,88766.0,0.47645873]
[1764011547413,2.89147778,88767.0,88766.0,0.25065275]
[1764011547640,2.89147778,88767.0,88766.0,0.14986247]
[1764011547792,2.89147778,88767.0,88766.0,1e-08]
[1764011548693,2.89047778,88767.0,88766.0,1e-08]
[1764011549009,2.84247778,88767.0,88766.0,1e-08]
[1764011549230,2.45495479,88767.0,88766.0,1e-08]
[1764011549390,2.43267652,88767.0,88766.0,1e-08]
[1764011549590,2.75567652,88767.0,88766.0,1e-08]
[1764011550637,2.74512744,88767.0,88766.0,1e-08]
[1764011550845,2.73512744,88767.0,88766.0,1e-08]
[1764011551210,2.41212744,88767.0,88766.0,1e-08]
[1764011551573,2.73512744,88767.0,88766.0,1e-08]
[1764011551771,2.73312744,88767.0,88766.0,1e-08]
[1764011552137,2.73212744,88767.0,88766.0,1e-08]
[1764011552522,2.73112744,88767.0,88766.0,1e-08]
[1764011552924,2.78112744,88767.0,88766.0,1e-08]
[1764011553954,2.7916629,88767.0,88766.0,1e-08]
[1764011554746,2.82489779,88767.0,88766.0,1e-08]
[1764011554952,2.85780937,88767.0,88766.0,1e-08]
[1764011555351,2.85880937,88767.0,88766.0,1e-08]
[1764011555953,2.82557448,88767.0,88766.0,1e-08]
[1764011556542,2.7926629,88767.0,88766.0,1e-08]
[1764011556739,2.85880937,88767.0,88766.0,1e-08]
[1764011557318,2.88310163,88767.0,88766.0,1e-08]
[1764011557523,2.84986674,88767.0,88766.0,1e-08]
[1764011560711,2.84886674,88767.0,88766.0,1e-08]
[1764011560895,2.81595516,88767.0,88766.0,1e-08]
[1764011561103,2.81695516,88767.0,88766.0,1e-08]
[1764011561705,2.81795516,88767.0,88766.0,1e-08]
[1764011565283,2.76795516,88767.0,88766.0,1e-08]
[1764011565837,2.81795516,88767.0,88766.0,1e-08]
[1764011566157,2.76695516,88767.0,88766.0,1e-08]
[1764011566361,2.76795516,88767.0,88766.0,1e-08]
[1764011566758,2.7426629,88767.0,88766.0,1e-08]
[1764011567168,2.7436629,88767.0,88766.0,1e-08]
[1764011567541,2.40296744,88767.0,88766.0,1e-08]
[1764011567778,2.41012744,88767.0,88766.0,1e-08]
[1764011568012,2.69924929,88767.0,88766.0,1e-08]
[1764011568369,2.37524929,88767.0,88766.0,1e-08]
[1764011568570,2.69724929,88767.0,88766.0,1e-08]
[1764011573643,0.57656858,88767.0,88766.0,1e-08]
[1764011578201,0.57639816,88767.0,88766.0,1e-08]
[1764011580395,0.35108921,88767.0,88766.0,1e-08]
[1764011581093,0.01414519,88769.0,88766.0,1e-08]
[1764011581094,0.00288,88769.0,88767.0,0.22530895]
[1764011581320,4.202e-05,88770.0,88769.0,0.22530387]
[1764011581518,4.202e-05,88770.0,88769.0,0.02836]
[1764011581836,0.01126544,88767.0,88760.0,0.0004]
[1764011582048,0.11261071,88766.0,88760.0,0.00079125]
[1764011582235,0.0112657,88765.0,88761.0,0.24552692]
[1764011582584,0.23658518,88764.0,88760.0,0.00079125]
[1764011582822,0.22532418,88761.0,88760.0,0.00079125]
[1764011583401,0.54832418,88761.0,88760.0,0.00079125]
[1764011583825,0.55548418,88761.0,88760.0,0.00079125]
[1764011584024,0.63871907,88761.0,88760.0,0.00079125]
[1764011584335,0.6100013,88761.0,88760.0,0.00179125]
[1764011584493,0.5600013,88761.0,88760.0,0.00179125]
[1764011584719,0.5600013,88761.0,88760.0,0.00079125]
[1764011585737,2.5610013,88761.0,88760.0,0.00079125]
[1764011590279,2.58209632,88761.0,88760.0,0.00079125]
[1764011593667,2.63209632,88761.0,88760.0,0.00079125]
[1764011594798,2.69986711,88761.0,88760.0,0.00079125]
[1764011595275,2.69886711,88761.0,88760.0,0.00079125]
[1764011595426,2.732102,88761.0,88760.0,0.00079125]
[1764011595628,2.733102,88761.0,88760.0,0.00079125]
[1764011595962,2.79662499,88761.0,88760.0,0.00079125]
[1764011596168,2.71085225,88759.0,88758.0,1e-08]
[1764011596363,2.7672152,88759.0,88758.0,1e-08]
[1764011597472,2.83534442,88759.0,88758.0,1e-08]
[1764011598571,2.83734442,88759.0,88758.0,1e-08]
[1764011598772,0.66089795,88741.0,88740.0,0.0004]
[1764011598972,2.83660615,88741.0,88740.0,0.0004]
[1764011599294,2.83660615,88741.0,88740.0,0.00095051]
[1764011599451,2.84112518,88741.0,88740.0,0.00095051]
[1764011600965,2.84212518,88741.0,88740.0,0.00095051]
[1764011601367,2.84112518,88741.0,88740.0,0.00095051]
[1764011601724,2.84212518,88741.0,88740.0,0.00095051]
[1764011602332,2.80728271,88741.0,88740.0,0.00095051]
[1764011602547,0.54840036,88731.0,88720.0,0.0004]
[1764011602742,2.62665538,88731.0,88720.0,0.0004]
[1764011603262,2.63117476,88731.0,88720.0,0.0004]
[1764011603644,2.63256598,88731.0,88720.0,0.0004]
[1764011603849,2.63356598,88731.0,88720.0,0.0004]
[1764011604052,2.62640598,88731.0,88720.0,0.0004]
[1764011604253,2.57640598,88731.0,88720.0,0.0004]
[1764011604652,2.58356598,88731.0,88726.0,0.00450069]
[1764011604862,2.58013535,88731.0,88726.0,0.00450069]
[1764011605265,2.55804033,88731.0,88726.0,0.00450069]
[1764011605469,2.57807257,88731.0,88726.0,0.00450069]
[1764011606679,2.57907257,88731.0,88726.0,0.00450069]
[1764011607031,2.57191257,88731.0,88726.0,0.00450069]
[1764011607336,2.57907257,88731.0,88726.0,0.00450069]
[1764011608121,2.57907298,88731.0,88726.0,0.00450069]
[1764011608332,2.57907298,88731.0,88730.0,0.0007059]
[1764011608707,2.5745536,88731.0,88730.0,0.0007059]
[1764011609694,2.5845536,88731.0,88730.0,0.0007059]
[1764011612719,2.36258387,88731.0,88730.0,0.0007059]
[1764011613106,2.58798423,88731.0,88730.0,0.0007059]
[1764011613654,2.58798423,88731.0,88730.0,0.00057092]
[1764011615460,2.25498423,88731.0,88730.0,0.00057092]
[1764011615851,2.57798423,88731.0,88730.0,0.00057092]
[1764011616620,2.57698423,88731.0,88730.0,0.00057092]
[1764011616826,0.56982423,88731.0,88730.0,0.02713092]
[1764011616985,0.57698423,88731.0,88730.0,0.03425308]
[1764011617184,0.57698423,88731.0,88730.0,0.00769308]
[1764011617611,0.57698423,88731.0,88730.0,0.02713092]
[1764011618016,0.35158387,88731.0,88730.0,0.02713092]
[1764011618212,0.02142387,88731.0,88730.0,0.29212382]
[1764011618426,0.02142387,88731.0,88730.0,0.06672092]
[1764011618637,0.00039122,88731.0,88730.0,0.29212382]
[1764011618852,0.00039122,88731.0,88730.0,0.36799595]
[1764011619148,0.00039122,88731.0,88730.0,0.29212382]
[1764011622760,0.00039122,88731.0,88730.0,0.06772092]
[1764011622935,0.00039122,88731.0,88730.0,0.29312382]
[1764011623155,0.00039122,88731.0,88730.0,0.06772092]
[1764011623479,0.00039122,88731.0,88730.0,0.06672092]
[1764011623678,0.00039122,88731.0,88730.0,0.14543618]
[1764011623881,0.00039122,88731.0,88730.0,0.37083908]
[1764011625478,0.00039122,88731.0,88730.0,0.14543618]
[1764011625639,0.00039122,88731.0,88730.0,0.06772092]
[1764011625837,0.00039122,88731.0,88730.0,0.02813092]
[1764011626041,0.22579158,88731.0,88730.0,0.00157092]
[1764011626493,0.22579158,88731.0,88730.0,0.00057092]
[1764011626876,0.56987513,88731.0,88730.0,0.00057092]
[1764011630735,0.34447477,88731.0,88730.0,0.00057092]
[1764011631128,0.34447477,88731.0,88730.0,0.28839382]
[1764011631360,0.56987513,88731.0,88730.0,0.00057092]
[1764011632397,0.56931163,88731.0,88730.0,0.00057092]
[1764011636333,2.56931163,88731.0,88730.0,0.00057092]
[1764011637588,0.34391127,88731.0,88730.0,0.02665092]
[1764011638190,0.56931163,88731.0,88730.0,0.00057092]
[1764011640515,0.34391127,88731.0,88730.0,0.00057092]
[1764011640685,0.32282772,88731.0,88730.0,0.28839382]
[1764011640868,0.32282772,88731.0,88730.0,0.32193445]
[1764011641071,0.23666018,88735.0,88732.0,0.22539587]
[1764011641274,0.323,88736.0,88732.0,0.02619697]
[1764011641476,0.5596574,88736.0,88734.0,0.25147163]
[1764011641679,0.23665704,88736.0,88735.0,0.02608]
[1764011642033,0.323,88738.0,88737.0,0.22538512]
[1764011642319,0.00436557,88745.0,88744.0,0.22536734]
[1764011642516,0.00436557,88745.0,88744.0,0.30775734]
[1764011642895,0.22973037,88745.0,88744.0,0.01997]
[1764011643098,0.54837496,88741.0,88740.0,0.01997]
[1764011645145,0.32736557,88745.0,88742.0,0.22537153]
[1764011645349,0.32736557,88745.0,88740.0,0.04605]
[1764011645350,0.32736557,88745.0,88744.0,0.27141734]
[1764011645552,0.3484772,88745.0,88744.0,0.27141734]
[1764011645751,0.32736557,88745.0,88744.0,0.30775734]
[1764011645954,0.55273037,88745.0,88744.0,0.04605]
[1764011646327,0.32736557,88745.0,88744.0,0.04605]
[1764011646505,0.55273037,88745.0,88744.0,0.01997]
[1764011646707,0.00436557,88745.0,88744.0,0.04605]
[1764011646905,0.00436557,88745.0,88744.0,0.27141734]
[1764011647106,0.00716,88749.0,88744.0,0.27141734]
[1764011647107,0.00716,88749.0,88747.0,0.22535805]
[1764011647305,0.00716,88749.0,88748.0,0.06242]
[1764011647512,0.23251465,88749.0,88748.0,0.02608]
[1764011647711,0.2253648,88745.0,88744.0,0.02097]
[1764011647916,0.2464746,88745.0,88744.0,0.02097]
[1764011648749,0.2464746,88745.0,88744.0,0.0512365]
[1764011648951,0.2464746,88745.0,88744.0,0.01997]
[1764011649367,0.2464746,88745.0,88740.0,0.01997]
[1764011649571,0.00716,88749.0,88734.0,0.01997]
[1764011649867,0.323,88746.0,88744.0,0.22636488]
[1764011650085,0.323,88746.0,88745.0,0.27053829]
[1764011650784,0.01842773,88749.0,88745.0,0.27053829]
[1764011650785,0.00716,88749.0,88745.0,0.10759349]
[1764011650982,0.00087146,88753.0,88752.0,0.22534703]
[1764011651278,0.00087146,88753.0,88752.0,0.30838363]
[1764011651497,0.00087146,88753.0,88752.0,0.0569566]
[1764011652236,0.22621595,88753.0,88752.0,0.0569566]
[1764011652451,0.01213868,88753.0,88750.0,0.22535189]
[1764011652874,0.00087146,88753.0,88751.0,0.2253484]
[1764011653073,0.00087146,88753.0,88752.0,0.22634703]
[1764011653283,0.01213868,88753.0,88750.0,0.22535189]
[1764011653652,0.01213868,88753.0,88750.0,0.27594028]
[1764011653862,0.01213868,88753.0,88735.0,0.22538979]
[1764011653863,0.2253708,88743.0,88735.0,0.22538979]
[1764011654065,0.01126862,88742.0,88738.0,0.22538187]
[1764011654272,0.011269,88739.0,88730.0,0.00026502]
[1764011654461,0.01126912,88738.0,88735.0,0.22538804]
[1764011654664,0.01126925,88737.0,88730.0,0.22566712]
[1764011654865,0.01126887,88740.0,88735.0,0.22538935]
[1764011655115,0.01126887,88740.0,88730.0,0.00026502]
[1764011655411,1.31019488,88742.0,88731.0,0.01127001]
[1764011655590,1.31019488,88742.0,88740.0,0.2253754]
[1764011655790,0.323,88743.0,88741.0,0.22537351]
[1764011656414,0.323,88746.0,88742.0,0.06761345]
[1764011656727,0.323,88746.0,88745.0,0.2253648]
[1764011656930,0.00087146,88753.0,88751.0,0.22534957]
[1764011657126,0.00087146,88753.0,88751.0,0.01812]
[1764011657327,0.00087146,88753.0,88741.0,0.01912]
[1764011657628,0.01126785,88748.0,88745.0,0.22536395]
[1764011657833,0.323,88750.0,88748.0,0.22535473]
[1764011658124,0.323,88750.0,88749.0,0.02506]
[1764011658483,0.22621609,88753.0,88750.0,0.22535211]
[1764011658668,0.323,88752.0,88750.0,0.22535211]
[1764011659422,0.323,88752.0,88751.0,0.22534957]
[1764011659623,0.33513868,88753.0,88751.0,0.22534957]
[1764011659826,0.32387146,88753.0,88752.0,0.22534703]
[1764011660429,0.32387146,88753.0,88752.0,0.37803857]
[1764011660631,0.00087146,88753.0,88752.0,0.37803857]
[1764011661320,0.32387146,88753.0,88752.0,0.15269154]
[1764011661541,0.32387146,88753.0,88752.0,0.06255]
[1764011661542,0.00087146,88753.0,88752.0,0.06255]
[1764011661750,0.00087146,88753.0,88752.0,0.25040703]
[1764011661959,0.00087146,88753.0,88752.0,0.28789703]
[1764011662164,0.00087146,88753.0,88752.0,0.28889703]
[1764011662541,0.00087146,88753.0,88752.0,0.06355]
[1764011662759,0.00087146,88753.0,88752.0,0.09243984]
[1764011662943,0.00087146,88753.0,88752.0,0.31778687]
[1764011664238,0.00087146,88753.0,88752.0,0.31678687]
[1764011664643,0.00087146,88753.0,88752.0,0.31878687]
[1764011665079,0.00087146,88753.0,88752.0,0.09343984]
[1764011665277,0.00087146,88753.0,88752.0,0.29705703]
[1764011665677,0.00087146,88753.0,88752.0,0.29089703]
[1764011669722,4.202e-05,88770.0,88769.0,0.22530387]
[1764011670022,4.202e-05,88770.0,88769.0,0.3648589]
[1764011670825,4.202e-05,88770.0,88769.0,0.36697587]
[1764011672100,4.202e-05,88770.0,88769.0,0.36797587]
[1764011672485,4.202e-05,88770.0,88769.0,0.43049886]
[1764011675143,0.00716,88804.0,88769.0,0.43049886]
[1764011675144,0.00716,88804.0,88776.0,0.2878091]
[1764011675381,0.01126024,88808.0,88776.0,0.54070112]
[1764011675582,0.00716,88809.0,88776.0,0.58819112]
[1764011675787,0.00573364,88777.0,88776.0,0.98819112]
[1764011676764,0.00573364,88777.0,88776.0,0.99019112]
[1764011677322,0.0004,88820.0,88799.0,0.01126138]
[1764011677531,0.3234,88820.0,88819.0,0.04318]
[1764011677721,0.02139625,88820.0,88819.0,0.04318]
[1764011677922,0.34439625,88820.0,88819.0,0.04318]
[1764011678220,0.34439625,88820.0,88819.0,0.0737652]
[1764011678419,0.34610137,88820.0,88819.0,0.0737652]
[1764011678769,0.34610137,88820.0,88819.0,0.0487052]
[1764011679124,0.34610137,88820.0,88809.0,0.03749]
[1764011679125,0.22519732,88811.0,88809.0,0.03749]
[1764011679327,0.2364549,88812.0,88809.0,0.03749]
[1764011679524,0.01125961,88813.0,88810.0,0.02506]
[1764011679709,0.01125961,88813.0,88811.0,0.02506]
[1764011680110,0.23645227,88813.0,88811.0,0.02506]
[1764011680309,0.23645227,88813.0,88812.0,0.05382404]
[1764011680514,0.23645227,88813.0,88812.0,0.07888404]
[1764011680917,0.01125961,88813.0,88812.0,0.07888404]
[1764011681234,0.02096679,88813.0,88812.0,0.07888404]
[1764011681431,0.02096679,88813.0,88812.0,0.11637404]
[1764011681843,0.02096679,88813.0,88812.0,0.34156883]
[1764011684015,0.02096679,88813.0,88812.0,0.11637404]
[1764011684221,0.02096679,88813.0,88812.0,0.06255]
[1764011684830,0.23423601,88815.0,88812.0,0.06255]
[1764011685030,0.23423601,88815.0,88807.0,0.24332548]
[1764011685031,0.23423601,88815.0,88814.0,0.02484]
[1764011686078,0.323,88816.0,88814.0,0.05949]
[1764011686279,0.323,88816.0,88814.0,0.03465]
[1764011686625,0.323,88816.0,88815.0,0.09075398]
[1764011687156,0.32419151,88816.0,88815.0,0.09075398]
[1764011687594,0.00119151,88816.0,88815.0,0.09075398]
[1764011687795,0.00119151,88816.0,88815.0,0.31594116]
[1764011688003,0.00119151,88816.0,88815.0,0.35185116]
[1764011688179,0.00119151,88816.0,88815.0,0.12666398]
[1764011688621,0.00119151,88816.0,88815.0,0.35185116]
[1764011689019,0.00119151,88816.0,88815.0,0.12666398]
[1764011689333,0.00119151,88816.0,88815.0,0.35185116]
[1764011689533,0.00119151,88816.0,88815.0,0.12666398]
[1764011689750,0.00119151,88816.0,88815.0,0.30334718]
[1764011690034,0.00119151,88816.0,88815.0,0.07816]
[1764011690185,0.00119151,88816.0,88815.0,0.30334718]
[1764011690620,0.22517479,88820.0,88815.0,0.07816]
[1764011690817,0.23643884,88818.0,88816.0,0.08876443]
[1764011691038,0.22518107,88818.0,88816.0,0.03602697]
[1764011691402,0.01125859,88821.0,88819.0,0.22517642]
[1764011691518,0.01125834,88823.0,88820.0,0.24923451]
[1764011691719,0.23642301,88824.0,88823.0,0.02406]
[1764011692151,0.23641975,88826.0,88823.0,0.2492268]
[1764011692353,0.23641975,88826.0,88825.0,0.02406]
[1764011694572,0.23641975,88826.0,88820.0,0.03591]
[1764011694784,0.22518211,88817.0,88816.0,0.00011697]
[1764011695982,0.01125885,88819.0,88816.0,0.00011697]
[1764011696185,0.2251806,88818.0,88817.0,0.02251821]
[1764011696564,0.2251806,88818.0,88816.0,0.03315274]
[1764011696565,0.22518211,88817.0,88816.0,0.03315274]
[1764011696898,0.24619861,88817.0,88816.0,0.00011697]
[1764011698509,0.24622825,88817.0,88816.0,0.00011697]
[1764011700196,0.24622825,88817.0,88816.0,0.02417697]
[1764011700410,0.02104614,88817.0,88816.0,0.06008697]
[1764011701313,0.24622825,88817.0,88816.0,0.02417697]
[1764011701541,0.56922825,88817.0,88816.0,0.00011697]
[1764011701951,0.57976891,88817.0,88816.0,0.00011697]
[1764011702173,0.61362545,88817.0,88816.0,0.00011697]
[1764011702317,0.57976891,88817.0,88816.0,0.00011697]
[1764011703921,0.02104614,88817.0,88816.0,0.28527162]
[1764011704171,0.02104614,88817.0,88816.0,0.11113367]
[1764011704333,0.02104614,88817.0,88816.0,0.33631832]
[1764011704941,0.02104614,88817.0,88816.0,0.11113367]
[1764011705183,0.24622825,88817.0,88816.0,0.02417697]
[1764011705533,0.56922825,88817.0,88816.0,0.00011697]
[1764011705748,2.57978251,88817.0,88816.0,0.00011697]
[1764011706287,2.57978251,88817.0,88816.0,0.00951697]
[1764011707186,2.60410093,88817.0,88816.0,0.00951697]
[1764011707484,2.60409845,88817.0,88816.0,0.00951697]
[1764011709041,2.65409845,88817.0,88816.0,0.00951697]
[1764011709433,2.60409845,88817.0,88816.0,0.00951697]
[1764011709796,2.59727251,88817.0,88816.0,0.00951697]
[1764011710003,2.59827251,88817.0,88816.0,0.00951697]
[1764011710202,0.3730904,88817.0,88816.0,0.00951697]
[1764011710564,0.34604614,88817.0,88816.0,0.00951697]
[1764011710726,0.34504614,88817.0,88816.0,0.00951697]
[1764011710891,0.57022825,88817.0,88816.0,0.00951697]
[1764011711088,0.02304614,88817.0,88816.0,0.00951697]
[1764011711295,0.02304614,88817.0,88816.0,0.09470686]
[1764011711512,0.02304614,88817.0,88816.0,0.31989151]
[1764011711718,0.02204614,88817.0,88816.0,0.31989151]
[1764011712549,0.02104614,88817.0,88816.0,0.31989151]
[1764011713112,0.01125783,88827.0,88824.0,0.02406]
[1764011713336,0.22517704,88819.0,88817.0,0.03591]
[1764011713511,0.23643589,88819.0,88818.0,0.03133273]
[1764011714123,0.01125821,88824.0,88819.0,0.22517704]
[1764011714329,0.01125859,88821.0,88818.0,0.02253]
[1764011714527,0.23643056,88821.0,88818.0,0.02253]
[1764011714730,0.23643056,88821.0,88820.0,0.02253]
[1764011715352,0.01125783,88827.0,88816.0,0.00951697]
[1764011715520,0.00716,88829.0,88828.0,0.02253]
[1764011715720,0.55531169,88829.0,88828.0,0.02253]
[1764011715929,0.55531169,88829.0,88828.0,0.02662709]
[1764011716334,0.5481593,88826.0,88825.0,0.01857]
[1764011716540,0.323,88826.0,88825.0,0.01857]
[1764011716715,0.0004,88830.0,88825.0,0.07612]
[1764011716929,0.0004,88830.0,88829.0,0.02253]
[1764011718284,0.22554916,88830.0,88829.0,0.02253]
[1764011718584,0.22554916,88830.0,88829.0,0.07167311]
[1764011718961,0.2251593,88826.0,88825.0,0.01857]
[1764011719487,0.01125771,88828.0,88816.0,0.00951697]
[1764011719488,0.22518211,88817.0,88816.0,0.00951697]
[1764011719785,0.22518017,88818.0,88816.0,0.00951697]
[1764011719990,0.01125885,88819.0,88816.0,0.00951697]
[1764011719991,0.22518211,88817.0,88816.0,0.00951697]
[1764011720713,0.54817974,88818.0,88816.0,0.00951697]
[1764011720926,0.323,88818.0,88817.0,0.22518211]
[1764011721079,0.323,88818.0,88817.0,0.26020211]
[1764011721282,0.323,88818.0,88817.0,0.24771211]
[1764011721487,0.323,88818.0,88817.0,0.28273211]
[1764011721689,0.323,88826.0,88821.0,0.22516982]
[1764011721911,0.323,88826.0,88817.0,0.05755]
[1764011721912,0.323,88821.0,88818.0,0.22517826]
[1764011722076,0.22516748,88823.0,88820.0,0.22517207]
[1764011722285,0.33425847,88822.0,88820.0,0.24770207]
[1764011722479,0.33425847,88822.0,88820.0,0.02253]
[1764011722798,0.55942791,88822.0,88821.0,0.02253]
[1764011723402,0.323,88823.0,88822.0,0.22516944]
[1764011723604,0.323,88823.0,88822.0,0.33000079]
[1764011724422,0.5594205,88825.0,88822.0,0.33000079]
[1764011724621,0.323,88823.0,88822.0,0.02253]
[1764011725153,0.01125859,88821.0,88818.0,0.22517782]
[1764011725300,0.323,88819.0,88817.0,0.26019971]
[1764011725501,0.22517708,88819.0,88816.0,0.00951697]
[1764011725750,0.23643593,88819.0,88816.0,0.00951697]
[1764011726092,0.22518077,88818.0,88816.0,0.00951697]
[1764011726302,0.55943605,88819.0,88816.0,0.23470162]
[1764011726506,0.323,88819.0,88818.0,0.22517958]
[1764011726715,0.323,88819.0,88818.0,0.24770958]
[1764011726924,0.323,88819.0,88818.0,0.28272958]
[1764011727127,0.55943612,88819.0,88816.0,0.23470067]
[1764011727244,0.22517964,88818.0,88816.0,0.00951697]
[1764011727441,0.22518211,88817.0,88816.0,0.00951697]
[1764011732140,0.54818211,88817.0,88816.0,0.00951697]
[1764011732564,0.55818211,88817.0,88816.0,0.00951697]
[1764011732781,2.57927223,88817.0,88816.0,0.00951697]
[1764011734241,2.61316656,88817.0,88816.0,0.00951697]
[1764011734661,2.61416656,88817.0,88816.0,0.00951697]
[1764011735078,2.58127223,88817.0,88816.0,0.00951697]
[1764011738589,2.64379522,88817.0,88816.0,0.00951697]
[1764011742728,2.66632129,88817.0,88816.0,0.00951697]
[1764011743510,2.66632129,88817.0,88816.0,0.00373697]
[1764011743511,2.69921562,88817.0,88816.0,0.00373697]
[1764011743775,2.66072031,88811.0,88810.0,0.00090119]
[1764011743982,2.68897043,88811.0,88810.0,0.00129266]
[1764011744255,2.72377099,88811.0,88810.0,0.00129266]
[1764011744430,2.71807058,88811.0,88810.0,0.00129266]
[1764011744612,2.74233214,88811.0,88810.0,0.00129266]
[1764011744814,2.78522647,88811.0,88810.0,1e-08]
[1764011745115,2.78522647,88811.0,88758.0,0.03612]
[1764011745116,0.22532926,88759.0,88758.0,0.01793]
[1764011745299,0.22533727,88757.0,88754.0,0.02253419]
[1764011745500,0.22533941,88755.0,88754.0,0.00011732]
[1764011746551,0.54833941,88755.0,88754.0,0.00011732]
[1764011746959,0.54833941,88755.0,88754.0,0.00182923]
[1764011747518,0.54833941,88755.0,88754.0,0.02454783]
[1764011747726,0.54833941,88755.0,88754.0,0.00182923]
[1764011750173,0.54933941,88755.0,88754.0,0.00182923]
[1764011750955,0.54833941,88755.0,88754.0,0.00182923]
[1764011751576,0.323,88755.0,88754.0,0.02386923]
[1764011751775,0.54833941,88755.0,88754.0,0.00182923]
[1764011752400,0.54833941,88755.0,88754.0,0.02386923]
[1764011752600,0.323,88755.0,88754.0,0.00182923]
[1764011752801,0.54833941,88755.0,88754.0,0.00182923]
[1764011754501,0.323,88755.0,88754.0,0.28145118]
[1764011754730,0.323,88755.0,88754.0,0.24921118]
[1764011755511,0.323,88755.0,88754.0,0.02386923]
[1764011756618,0.323,88755.0,88754.0,0.24921118]
[1764011757323,0.323,88755.0,88754.0,0.02386923]
[1764011757517,0.323,88755.0,88754.0,0.24921118]
[1764011757945,0.54833941,88755.0,88754.0,0.02386923]
[1764011758369,0.54833941,88755.0,88754.0,0.28145118]
[1764011758370,0.323,88755.0,88754.0,0.28145118]
[1764011758579,0.323,88755.0,88754.0,0.31353031]
[1764011759310,0.0112657,88765.0,88754.0,0.05610923]
[1764011759458,0.01126595,88763.0,88760.0,0.0168]
[1764011759656,0.01126671,88757.0,88754.0,0.02215732]
[1764011759881,0.23660345,88757.0,88754.0,0.02215732]
[1764011760077,0.23659934,88758.0,88754.0,0.2474988]
[1764011760297,0.01126671,88757.0,88754.0,0.02215732]
[1764011760498,2.54833941,88755.0,88754.0,0.00011732]
[1764011760765,2.5693401,88755.0,88754.0,0.00011732]
[1764011761071,0.5693401,88755.0,88754.0,0.00011732]
[1764011761283,0.5693401,88755.0,88754.0,0.02215732]
[1764011761500,0.323,88755.0,88754.0,0.02215732]
[1764011761697,0.03224,88764.0,88763.0,0.2253191]
[1764011761876,0.02100658,88764.0,88763.0,0.2473591]
[1764011762082,0.02100658,88764.0,88763.0,0.2253191]
[1764011762681,0.03387298,88775.0,88763.0,0.37421575]
[1764011762881,2.0,88793.0,88778.0,0.01126405]
[1764011763179,0.02100877,88792.0,88791.0,0.22524805]
[1764011763409,0.02100877,88792.0,88780.0,0.0168]
[1764011763605,0.01134351,88812.0,88780.0,0.0168]
[1764011763606,0.323,88801.0,88791.0,0.03884]
[1764011763809,0.22524146,88794.0,88792.0,0.02204]
[1764011764006,0.02100974,88793.0,88792.0,0.02204]
[1764011764209,0.24625381,88793.0,88791.0,0.0168]
[1764011764529,0.54824407,88793.0,88792.0,0.00011732]
[1764011764703,0.56925588,88793.0,88792.0,0.00011732]
[1764011765086,0.34401181,88793.0,88792.0,0.02215732]
[1764011765405,0.24625479,88793.0,88792.0,0.00066734]
[1764011765975,0.24625479,88793.0,88792.0,0.02270734]
[1764011765976,0.02101181,88793.0,88792.0,0.02270734]
[1764011766402,0.02101181,88793.0,88792.0,0.05494734]
[1764011766639,0.02101181,88793.0,88792.0,0.13195018]
[1764011766958,0.72520834,88807.0,88792.0,0.35719316]
[1764011767107,0.01126062,88805.0,88801.0,0.22522019]